[Event "Titled Tuesday Blitz March 28 Early 2023"]
[White "Zheenbekov, Nurgazy"]
[Black "Sai Krishna G V"]
[WhiteFideId "13800485"]
[BlackFideId "5028280"]
[WhiteElo "1975"]
[BlackElo "2359"]
[Result "1/2-1/2"]
[Round "09"]
[TimeControl "180+2"]
[Date "2023.03.28"]
[WhiteClock "0:00:12"]
[BlackClock "0:00:06"]

1. e4 {[%clk 0:02:52]}  c5 {[%clk 0:02:46]} 2. Nf3 {[%clk 0:02:51]}  d6 {[%clk 0:02:45]} 3. Bb5+ {[%clk 0:02:51]}  Nc6 {[%clk 0:02:45]} 4. O-O {[%clk 0:02:50]}  g6 {[%clk 0:02:44]} 5. Re1 {[%clk 0:02:49]}  Bg7 {[%clk 0:02:44]} 6. h3 {[%clk 0:02:49]}  e6 {[%clk 0:02:42]} 7. c3 {[%clk 0:02:48]}  Ne7 {[%clk 0:02:42]} 8. a4 {[%clk 0:02:46]}  O-O {[%clk 0:02:41]} 9. d4 {[%clk 0:02:45]}  cxd4 {[%clk 0:02:32]} 10. cxd4 {[%clk 0:02:45]}  d5 {[%clk 0:02:32]} 11. e5 {[%clk 0:02:44]}  h6 {[%clk 0:02:27]} 12. b3 {[%clk 0:02:34]}  Nb4 {[%clk 0:02:21]} 13. a5 {[%clk 0:02:23]}  Bd7 {[%clk 0:02:18]} 14. Bf1 {[%clk 0:02:22]}  Rc8 {[%clk 0:02:16]} 15. Ba3 {[%clk 0:02:22]}  Nc2 {[%clk 0:02:15]} 16. Nbd2 {[%clk 0:02:06]}  Re8 {[%clk 0:02:11]} 17. Bc5 {[%clk 0:01:54]}  Nxa1 {[%clk 0:01:59]} 18. Qxa1 {[%clk 0:01:53]}  b6 {[%clk 0:01:59]} 19. axb6 {[%clk 0:01:53]}  axb6 {[%clk 0:02:00]} 20. Bd6 {[%clk 0:01:52]}  Nf5 {[%clk 0:01:57]} 21. Bb4 {[%clk 0:01:50]}  Ra8 {[%clk 0:01:50]} 22. Qb2 {[%clk 0:01:49]}  Bf8 {[%clk 0:01:45]} 23. Bxf8 {[%clk 0:01:49]}  Rxf8 {[%clk 0:01:45]} 24. Bd3 {[%clk 0:01:49]}  Qe7 {[%clk 0:01:43]} 25. Bxf5 {[%clk 0:01:45]}  exf5 {[%clk 0:01:44]} 26. h4 {[%clk 0:01:44]}  Kg7 {[%clk 0:01:43]} 27. e6 {[%clk 0:01:37]}  Bxe6 {[%clk 0:01:42]} 28. Ne5 {[%clk 0:01:37]}  Qxh4 {[%clk 0:01:42]} 29. Ndf3 {[%clk 0:01:37]}  Qf6 {[%clk 0:01:39]} 30. Qd2 {[%clk 0:01:29]}  Rfc8 {[%clk 0:01:37]} 31. Qb4 {[%clk 0:01:29]}  Qd8 {[%clk 0:01:27]} 32. Nd3 {[%clk 0:01:23]}  Rab8 {[%clk 0:01:16]} 33. Nf4 {[%clk 0:01:21]}  Qf6 {[%clk 0:00:53]} 34. Ne5 {[%clk 0:01:16]}  Re8 {[%clk 0:00:42]} 35. Qd6 {[%clk 0:01:08]}  Rbd8 {[%clk 0:00:40]} 36. Qxb6 {[%clk 0:01:07]}  Rb8 {[%clk 0:00:40]} 37. Qa7 {[%clk 0:01:03]}  Qe7 {[%clk 0:00:31]} 38. Qxe7 {[%clk 0:00:55]}  Rxe7 {[%clk 0:00:32]} 39. Nc6 {[%clk 0:00:55]}  Reb7 {[%clk 0:00:32]} 40. Nxb8 {[%clk 0:00:55]}  Rxb8 {[%clk 0:00:33]} 41. Nxe6+ {[%clk 0:00:55]}  fxe6 {[%clk 0:00:34]} 42. Rxe6 {[%clk 0:00:56]}  Rb4 {[%clk 0:00:29]} 43. Rd6 {[%clk 0:00:50]}  Rxd4 {[%clk 0:00:29]} 44. b4 {[%clk 0:00:46]}  Rxb4 {[%clk 0:00:26]} 45. Rxd5 {[%clk 0:00:46]}  Kf6 {[%clk 0:00:25]} 46. g3 {[%clk 0:00:46]}  Kg5 {[%clk 0:00:23]} 47. Kg2 {[%clk 0:00:46]}  Rb3 {[%clk 0:00:21]} 48. Rd6 {[%clk 0:00:45]}  f4 {[%clk 0:00:16]} 49. gxf4+ {[%clk 0:00:44]}  Kf5 {[%clk 0:00:17]} 50. f3 {[%clk 0:00:40]}  h5 {[%clk 0:00:10]} 51. Kg3 {[%clk 0:00:37]}  Rb1 {[%clk 0:00:09]} 52. Rd5+ {[%clk 0:00:35]}  Ke6 {[%clk 0:00:09]} 53. Re5+ {[%clk 0:00:34]}  Kf6 {[%clk 0:00:09]} 54. Ra5 {[%clk 0:00:32]}  Rg1+ {[%clk 0:00:09]} 55. Kf2 {[%clk 0:00:30]}  Rc1 {[%clk 0:00:09]} 56. Kg3 {[%clk 0:00:29]}  Rg1+ {[%clk 0:00:09]} 57. Kf2 {[%clk 0:00:29]}  Rc1 {[%clk 0:00:08]} 58. Kg3 {[%clk 0:00:29]}  Rh1 {[%clk 0:00:09]} 59. Ra6+ {[%clk 0:00:28]}  Kf5 {[%clk 0:00:09]} 60. Ra5+ {[%clk 0:00:28]}  Kf6 {[%clk 0:00:09]} 61. Ra6+ {[%clk 0:00:28]}  Kg7 {[%clk 0:00:10]} 62. f5 {[%clk 0:00:24]}  gxf5 {[%clk 0:00:06]} 63. Kf4 {[%clk 0:00:24]}  h4 {[%clk 0:00:05]} 64. Kxf5 {[%clk 0:00:16]}  h3 {[%clk 0:00:05]} 65. Kg4 {[%clk 0:00:14]}  h2 {[%clk 0:00:03]} 66. Kg3 {[%clk 0:00:14]}  Rf1 {[%clk 0:00:03]} 67. Kxh2 {[%clk 0:00:14]}  Rxf3 {[%clk 0:00:03]} 68. Kg2 {[%clk 0:00:14]}  Rf7 {[%clk 0:00:04]} 69. Rb6 {[%clk 0:00:13]}  Rf6 {[%clk 0:00:05]} 70. Rxf6 {[%clk 0:00:12]}  Kxf6 {[%clk 0:00:06]} 1/2-1/2


[Site "https://www.chess.com"]

[Event "Titled Tuesday Blitz March 28 Early 2023"]
[White "Kucuksari, Kaan"]
[Black "Gatterer, Florian"]
[WhiteFideId "6380166"]
[BlackFideId "811688"]
[WhiteElo "2364"]
[BlackElo "2221"]
[Result "1-0"]
[Round "09"]
[TimeControl "180+2"]
[Date "2023.03.28"]
[WhiteClock "0:02:09"]
[BlackClock "0:00:11"]

1. d4 {[%clk 0:03:00]}  d5 {[%clk 0:02:50]} 2. Nf3 {[%clk 0:03:00]}  Nf6 {[%clk 0:02:49]} 3. Bf4 {[%clk 0:03:00]}  c5 {[%clk 0:02:50]} 4. e3 {[%clk 0:02:59]}  Nc6 {[%clk 0:02:50]} 5. Nbd2 {[%clk 0:02:59]}  Bg4 {[%clk 0:02:49]} 6. c3 {[%clk 0:02:56]}  e6 {[%clk 0:02:49]} 7. Qb3 {[%clk 0:02:55]}  Qc8 {[%clk 0:02:47]} 8. Bb5 {[%clk 0:02:49]}  Be7 {[%clk 0:02:42]} 9. Ne5 {[%clk 0:02:48]}  O-O {[%clk 0:02:38]} 10. Bxc6 {[%clk 0:02:47]}  bxc6 {[%clk 0:02:34]} 11. Qa4 {[%clk 0:02:47]}  cxd4 {[%clk 0:02:25]} 12. Nxc6 {[%clk 0:02:42]}  Qd7 {[%clk 0:02:08]} 13. Nxe7+ {[%clk 0:02:39]}  Qxe7 {[%clk 0:02:08]} 14. exd4 {[%clk 0:02:40]}  Nh5 {[%clk 0:01:51]} 15. Be3 {[%clk 0:02:40]}  f5 {[%clk 0:01:50]} 16. f3 {[%clk 0:02:31]}  f4 {[%clk 0:01:46]} 17. Bf2 {[%clk 0:02:29]}  Bf5 {[%clk 0:01:38]} 18. O-O {[%clk 0:02:30]}  Rab8 {[%clk 0:01:38]} 19. Nb3 {[%clk 0:02:29]}  Bc2 {[%clk 0:01:24]} 20. Rfe1 {[%clk 0:02:29]}  Kh8 {[%clk 0:01:03]} 21. Re5 {[%clk 0:02:25]}  Bf5 {[%clk 0:00:55]} 22. Rae1 {[%clk 0:02:23]}  Qd6 {[%clk 0:00:47]} 23. R1e2 {[%clk 0:02:17]}  Nf6 {[%clk 0:00:44]} 24. Nc5 {[%clk 0:02:17]}  Rfe8 {[%clk 0:00:34]} 25. Bh4 {[%clk 0:02:15]}  Rf8 {[%clk 0:00:18]} 26. Nxe6 {[%clk 0:02:12]}  Bxe6 {[%clk 0:00:16]} 27. Rxe6 {[%clk 0:02:13]}  Qc7 {[%clk 0:00:16]} 28. Bxf6 {[%clk 0:02:12]}  gxf6 {[%clk 0:00:16]} 29. Re7 {[%clk 0:02:11]}  Qb6 {[%clk 0:00:11]} 30. Qd7 {[%clk 0:02:09]} 1-0


[Site "https://www.chess.com"]

[Event "Titled Tuesday Blitz March 28 Early 2023"]
[White "Al-Tarboush, Ward"]
[Black "Liu, Casper"]
[WhiteFideId "7601450"]
[BlackFideId "1454153"]
[WhiteElo "2257"]
[BlackElo "2221"]
[Result "1-0"]
[Round "09"]
[TimeControl "180+2"]
[Date "2023.03.28"]
[WhiteClock "0:00:40"]
[BlackClock "0:00:06"]

1. e4 {[%clk 0:03:00]}  c5 {[%clk 0:02:52]} 2. Nf3 {[%clk 0:03:01]}  d6 {[%clk 0:02:52]} 3. d4 {[%clk 0:03:01]}  cxd4 {[%clk 0:02:53]} 4. Nxd4 {[%clk 0:03:02]}  Nf6 {[%clk 0:02:54]} 5. Nc3 {[%clk 0:03:03]}  Nc6 {[%clk 0:02:55]} 6. h3 {[%clk 0:03:03]}  e5 {[%clk 0:02:55]} 7. Nde2 {[%clk 0:03:03]}  Be7 {[%clk 0:02:56]} 8. g4 {[%clk 0:03:03]}  Be6 {[%clk 0:02:55]} 9. Bg2 {[%clk 0:03:04]}  O-O {[%clk 0:02:53]} 10. Ng3 {[%clk 0:03:04]}  b5 {[%clk 0:02:45]} 11. Nxb5 {[%clk 0:03:03]}  Qa5+ {[%clk 0:02:45]} 12. Nc3 {[%clk 0:03:03]}  Rfd8 {[%clk 0:02:40]} 13. g5 {[%clk 0:03:03]}  d5 {[%clk 0:02:26]} 14. gxf6 {[%clk 0:03:01]}  d4 {[%clk 0:02:27]} 15. fxe7 {[%clk 0:02:59]}  dxc3 {[%clk 0:02:27]} 16. exd8=Q+ {[%clk 0:02:58]}  Rxd8 {[%clk 0:02:27]} 17. O-O {[%clk 0:02:51]}  Rxd1 {[%clk 0:02:24]} 18. Rxd1 {[%clk 0:02:51]}  h6 {[%clk 0:02:24]} 19. bxc3 {[%clk 0:02:51]}  Qxc3 {[%clk 0:02:23]} 20. Be3 {[%clk 0:02:51]}  a5 {[%clk 0:02:20]} 21. Rab1 {[%clk 0:02:44]}  Bxa2 {[%clk 0:02:15]} 22. Rb7 {[%clk 0:02:44]}  a4 {[%clk 0:02:10]} 23. Rc7 {[%clk 0:02:44]}  a3 {[%clk 0:02:05]} 24. Nf5 {[%clk 0:02:44]}  Bc4 {[%clk 0:01:46]} 25. Rxc6 {[%clk 0:02:41]}  a2 {[%clk 0:01:46]} 26. Rc8+ {[%clk 0:02:17]}  Kh7 {[%clk 0:01:45]} 27. Ra8 {[%clk 0:02:17]}  Qxc2 {[%clk 0:01:36]} 28. Bf3 {[%clk 0:02:11]}  Bb3 {[%clk 0:01:20]} 29. Ne7 {[%clk 0:02:05]}  Qc7 {[%clk 0:01:05]} 30. Rdd8 {[%clk 0:01:49]}  Qxe7 {[%clk 0:01:02]} 31. Rh8+ {[%clk 0:01:42]}  Kg6 {[%clk 0:01:02]} 32. Ra6+ {[%clk 0:01:35]}  f6 {[%clk 0:00:59]} 33. h4 {[%clk 0:01:27]}  Bc4 {[%clk 0:00:21]} 34. h5+ {[%clk 0:01:28]}  Kf7 {[%clk 0:00:21]} 35. Ra5 {[%clk 0:01:28]}  Qb4 {[%clk 0:00:18]} 36. Ra7+ {[%clk 0:01:25]}  Ke6 {[%clk 0:00:18]} 37. Bg4+ {[%clk 0:01:24]}  f5 {[%clk 0:00:13]} 38. Bxf5+ {[%clk 0:01:23]}  Kf6 {[%clk 0:00:14]} 39. Rc8 {[%clk 0:00:47]}  Qd6 {[%clk 0:00:05]} 40. Rxc4 {[%clk 0:00:43]}  Qd1+ {[%clk 0:00:05]} 41. Kg2 {[%clk 0:00:41]}  a1=Q {[%clk 0:00:06]} 42. Rc6+ {[%clk 0:00:40]} 1-0


[Site "https://www.chess.com"]

[Event "Titled Tuesday Blitz March 28 Early 2023"]
[White "Kim, Sergey"]
[Black "Gonzalez, Francisco Silva"]
[WhiteFideId "13700570"]
[BlackFideId "1512285"]
[WhiteElo "2609"]
[BlackElo "2074"]
[Result "1-0"]
[Round "09"]
[TimeControl "180+2"]
[Date "2023.03.28"]
[WhiteClock "0:00:52"]
[BlackClock "0:00:19"]

1. d4 {[%clk 0:03:00]}  Nf6 {[%clk 0:02:56]} 2. c4 {[%clk 0:03:00]}  e6 {[%clk 0:02:56]} 3. Nc3 {[%clk 0:03:01]}  Bb4 {[%clk 0:02:55]} 4. Qc2 {[%clk 0:03:01]}  d6 {[%clk 0:02:55]} 5. a3 {[%clk 0:03:01]}  Bxc3+ {[%clk 0:02:55]} 6. Qxc3 {[%clk 0:03:01]}  Nbd7 {[%clk 0:02:55]} 7. Nf3 {[%clk 0:03:01]}  b6 {[%clk 0:02:54]} 8. g3 {[%clk 0:03:01]}  Bb7 {[%clk 0:02:54]} 9. Bg2 {[%clk 0:03:01]}  O-O {[%clk 0:02:53]} 10. O-O {[%clk 0:03:01]}  a5 {[%clk 0:02:51]} 11. b3 {[%clk 0:03:01]}  Re8 {[%clk 0:02:49]} 12. Bb2 {[%clk 0:02:58]}  Ne4 {[%clk 0:02:49]} 13. Qc2 {[%clk 0:02:58]}  Nef6 {[%clk 0:02:49]} 14. Bh3 {[%clk 0:02:53]}  Be4 {[%clk 0:02:47]} 15. Qc3 {[%clk 0:02:52]}  Bb7 {[%clk 0:02:46]} 16. Nd2 {[%clk 0:02:52]}  d5 {[%clk 0:02:45]} 17. f3 {[%clk 0:02:48]}  Rc8 {[%clk 0:02:42]} 18. c5 {[%clk 0:02:46]}  bxc5 {[%clk 0:02:41]} 19. dxc5 {[%clk 0:02:45]}  Ba6 {[%clk 0:02:37]} 20. Rfe1 {[%clk 0:02:41]}  c6 {[%clk 0:02:37]} 21. b4 {[%clk 0:02:36]}  Rb8 {[%clk 0:02:33]} 22. Nb3 {[%clk 0:02:33]}  axb4 {[%clk 0:02:29]} 23. axb4 {[%clk 0:02:33]}  Ra8 {[%clk 0:02:27]} 24. Nd4 {[%clk 0:02:21]}  Qc7 {[%clk 0:02:24]} 25. Ra5 {[%clk 0:02:06]}  Bb7 {[%clk 0:02:22]} 26. Rea1 {[%clk 0:02:05]}  Rxa5 {[%clk 0:02:21]} 27. Rxa5 {[%clk 0:02:05]}  Ra8 {[%clk 0:02:21]} 28. Rxa8+ {[%clk 0:02:04]}  Bxa8 {[%clk 0:02:20]} 29. Qa3 {[%clk 0:02:03]}  Qb8 {[%clk 0:02:19]} 30. Qa5 {[%clk 0:02:02]}  Bb7 {[%clk 0:02:18]} 31. e3 {[%clk 0:01:56]}  h5 {[%clk 0:02:14]} 32. Bf1 {[%clk 0:01:55]}  h4 {[%clk 0:02:13]} 33. g4 {[%clk 0:01:48]}  Ne5 {[%clk 0:02:04]} 34. Be2 {[%clk 0:01:33]}  h3 {[%clk 0:01:49]} 35. Qb6 {[%clk 0:01:25]}  Nfd7 {[%clk 0:01:49]} 36. Qa5 {[%clk 0:01:24]}  Nf6 {[%clk 0:01:46]} 37. b5 {[%clk 0:01:19]}  cxb5 {[%clk 0:01:45]} 38. Qxb5 {[%clk 0:01:19]}  Qc7 {[%clk 0:01:33]} 39. Kf2 {[%clk 0:01:12]}  Nc4 {[%clk 0:01:21]} 40. Bxc4 {[%clk 0:01:05]}  Qxh2+ {[%clk 0:01:20]} 41. Ke1 {[%clk 0:01:05]}  Qxb2 {[%clk 0:01:15]} 42. Qxb2 {[%clk 0:01:03]}  dxc4 {[%clk 0:00:28]} 43. Qxb7 {[%clk 0:00:55]}  e5 {[%clk 0:00:23]} 44. Qb8+ {[%clk 0:00:55]}  Ne8 {[%clk 0:00:24]} 45. Qxe8+ {[%clk 0:00:53]}  Kh7 {[%clk 0:00:23]} 46. Qxe5 {[%clk 0:00:53]}  h2 {[%clk 0:00:19]} 47. Qxh2+ {[%clk 0:00:52]} 1-0


[Site "https://www.chess.com"]

[Event "Titled Tuesday Blitz March 28 Early 2023"]
[White "Begunov, Konstantin"]
[Black "Rosen, Eric"]
[WhiteFideId "4118510"]
[BlackFideId "2032562"]
[WhiteElo "2079"]
[BlackElo "2331"]
[Result "0-1"]
[Round "09"]
[TimeControl "180+2"]
[Date "2023.03.28"]
[WhiteClock "0:00:04"]
[BlackClock "0:00:21"]

1. d4 {[%clk 0:02:55]}  b5 {[%clk 0:02:57]} 2. a4 {[%clk 0:02:53]}  b4 {[%clk 0:02:53]} 3. e4 {[%clk 0:02:53]}  Bb7 {[%clk 0:02:51]} 4. Nd2 {[%clk 0:02:53]}  e6 {[%clk 0:02:48]} 5. f3 {[%clk 0:02:53]}  c5 {[%clk 0:02:45]} 6. Nb3 {[%clk 0:02:48]}  cxd4 {[%clk 0:02:43]} 7. Nxd4 {[%clk 0:02:47]}  Bc5 {[%clk 0:02:22]} 8. Be3 {[%clk 0:02:44]}  d6 {[%clk 0:02:07]} 9. Bb5+ {[%clk 0:02:38]}  Kf8 {[%clk 0:02:07]} 10. Nge2 {[%clk 0:02:34]}  a6 {[%clk 0:02:05]} 11. Bc4 {[%clk 0:02:30]}  Qb6 {[%clk 0:02:05]} 12. Qd2 {[%clk 0:02:24]}  Ne7 {[%clk 0:02:00]} 13. a5 {[%clk 0:02:01]}  Qa7 {[%clk 0:01:59]} 14. Bxe6 {[%clk 0:01:45]}  fxe6 {[%clk 0:01:50]} 15. Nxe6+ {[%clk 0:01:46]}  Kf7 {[%clk 0:01:46]} 16. Bxc5 {[%clk 0:01:38]}  dxc5 {[%clk 0:01:44]} 17. Nc7 {[%clk 0:01:38]}  Nbc6 {[%clk 0:01:38]} 18. Qf4+ {[%clk 0:01:36]}  Kg8 {[%clk 0:01:33]} 19. Nxa8 {[%clk 0:01:26]}  Qxa8 {[%clk 0:01:34]} 20. O-O {[%clk 0:01:14]}  h6 {[%clk 0:01:33]} 21. Rfd1 {[%clk 0:01:07]}  Kh7 {[%clk 0:01:33]} 22. Rd7 {[%clk 0:01:06]}  Bc8 {[%clk 0:01:10]} 23. Rc7 {[%clk 0:01:01]}  Rd8 {[%clk 0:00:57]} 24. Qf7 {[%clk 0:00:51]}  Rd7 {[%clk 0:00:48]} 25. Rxd7 {[%clk 0:00:44]}  Bxd7 {[%clk 0:00:49]} 26. Rd1 {[%clk 0:00:29]}  Qc8 {[%clk 0:00:49]} 27. Nf4 {[%clk 0:00:21]}  Be8 {[%clk 0:00:44]} 28. Qc4 {[%clk 0:00:17]}  Nxa5 {[%clk 0:00:41]} 29. Qd3 {[%clk 0:00:13]}  c4 {[%clk 0:00:35]} 30. Qd6 {[%clk 0:00:12]}  Nac6 {[%clk 0:00:34]} 31. e5 {[%clk 0:00:12]}  Qf5 {[%clk 0:00:29]} 32. e6 {[%clk 0:00:07]}  Qxc2 {[%clk 0:00:25]} 33. h4 {[%clk 0:00:05]}  c3 {[%clk 0:00:21]} 34. bxc3 {[%clk 0:00:04]}  b3 {[%clk 0:00:21]} 0-1


[Site "https://www.chess.com"]

[Event "Titled Tuesday Blitz March 28 Early 2023"]
[White "Nunez V, Gustavo Eduardo"]
[Black "Melian, Juan Sebastian"]
[WhiteFideId "4403690"]
[BlackFideId "3706575"]
[WhiteElo "2228"]
[BlackElo "2031"]
[Result "0-1"]
[Round "09"]
[TimeControl "180+2"]
[Date "2023.03.28"]
[WhiteClock "0:00:26"]
[BlackClock "0:00:45"]

1. e4 {[%clk 0:01:32]}  c6 {[%clk 0:02:59]} 2. d3 {[%clk 0:01:32]}  d5 {[%clk 0:03:00]} 3. Nd2 {[%clk 0:01:32]}  g6 {[%clk 0:03:00]} 4. g3 {[%clk 0:01:33]}  Bg7 {[%clk 0:03:00]} 5. Bg2 {[%clk 0:01:33]}  Nf6 {[%clk 0:03:00]} 6. Ne2 {[%clk 0:01:34]}  O-O {[%clk 0:02:58]} 7. O-O {[%clk 0:01:34]}  e5 {[%clk 0:02:51]} 8. f4 {[%clk 0:01:33]}  exf4 {[%clk 0:02:48]} 9. Nxf4 {[%clk 0:01:32]}  dxe4 {[%clk 0:02:49]} 10. Nxe4 {[%clk 0:01:32]}  Nxe4 {[%clk 0:02:48]} 11. Bxe4 {[%clk 0:01:33]}  Nd7 {[%clk 0:02:45]} 12. Bg2 {[%clk 0:01:30]}  Ne5 {[%clk 0:02:38]} 13. h3 {[%clk 0:01:27]}  Bf5 {[%clk 0:02:28]} 14. Rb1 {[%clk 0:01:18]}  a5 {[%clk 0:02:16]} 15. a4 {[%clk 0:01:18]}  Re8 {[%clk 0:02:06]} 16. Kh2 {[%clk 0:01:13]}  Nd7 {[%clk 0:01:59]} 17. b3 {[%clk 0:01:04]}  Nc5 {[%clk 0:01:52]} 18. Ba3 {[%clk 0:01:01]}  Ne6 {[%clk 0:01:51]} 19. Nxe6 {[%clk 0:00:59]}  Bxe6 {[%clk 0:01:52]} 20. Qd2 {[%clk 0:00:56]}  Qc7 {[%clk 0:01:42]} 21. Rbe1 {[%clk 0:00:52]}  Rad8 {[%clk 0:01:41]} 22. Bc5 {[%clk 0:00:47]}  Be5 {[%clk 0:01:40]} 23. Bf2 {[%clk 0:00:47]}  Bd5 {[%clk 0:01:34]} 24. Bxd5 {[%clk 0:00:45]}  Rxd5 {[%clk 0:01:35]} 25. d4 {[%clk 0:00:37]}  Red8 {[%clk 0:01:34]} 26. c3 {[%clk 0:00:37]}  c5 {[%clk 0:01:30]} 27. c4 {[%clk 0:00:34]}  Rxd4 {[%clk 0:01:27]} 28. Bxd4 {[%clk 0:00:29]}  Bxg3+ {[%clk 0:01:27]} 29. Kg2 {[%clk 0:00:29]}  Rxd4 {[%clk 0:01:23]} 30. Re8+ {[%clk 0:00:24]}  Kg7 {[%clk 0:01:23]} 31. Qe3 {[%clk 0:00:20]}  Bf4 {[%clk 0:01:19]} 32. Qf3 {[%clk 0:00:17]}  Qd6 {[%clk 0:01:00]} 33. Re4 {[%clk 0:00:16]}  Rd2+ {[%clk 0:00:58]} 34. Rf2 {[%clk 0:00:17]}  g5 {[%clk 0:00:55]} 35. Rxd2 {[%clk 0:00:15]}  Qxd2+ {[%clk 0:00:56]} 36. Re2 {[%clk 0:00:15]}  Qd1 {[%clk 0:00:45]} 37. h4 {[%clk 0:00:15]}  h6 {[%clk 0:00:45]} 38. hxg5 {[%clk 0:00:14]}  hxg5 {[%clk 0:00:46]} 39. Re7 {[%clk 0:00:11]}  Qc2+ {[%clk 0:00:43]} 40. Re2 {[%clk 0:00:10]}  Qf5 {[%clk 0:00:37]} 41. Rf2 {[%clk 0:00:08]}  b6 {[%clk 0:00:32]} 42. Qh3 {[%clk 0:00:06]}  Qe4+ {[%clk 0:00:31]} 43. Qf3 {[%clk 0:00:05]}  Qe6 {[%clk 0:00:31]} 44. Qd5 {[%clk 0:00:05]}  Qg4+ {[%clk 0:00:31]} 45. Kf1 {[%clk 0:00:04]}  Qh3+ {[%clk 0:00:30]} 46. Qg2 {[%clk 0:00:04]}  Qxb3 {[%clk 0:00:31]} 47. Rxf4 {[%clk 0:00:04]}  Qd1+ {[%clk 0:00:28]} 48. Kf2 {[%clk 0:00:05]}  Qd2+ {[%clk 0:00:29]} 49. Kg1 {[%clk 0:00:04]}  Qxg2+ {[%clk 0:00:26]} 50. Kxg2 {[%clk 0:00:05]}  gxf4 {[%clk 0:00:27]} 51. Kf3 {[%clk 0:00:05]}  Kf6 {[%clk 0:00:28]} 52. Kxf4 {[%clk 0:00:06]}  Ke6 {[%clk 0:00:28]} 53. Ke4 {[%clk 0:00:07]}  f5+ {[%clk 0:00:29]} 54. Kf4 {[%clk 0:00:08]}  Kf6 {[%clk 0:00:30]} 55. Kf3 {[%clk 0:00:08]}  Ke5 {[%clk 0:00:31]} 56. Ke3 {[%clk 0:00:09]}  f4+ {[%clk 0:00:32]} 57. Kd3 {[%clk 0:00:10]}  f3 {[%clk 0:00:32]} 58. Ke3 {[%clk 0:00:11]}  f2 {[%clk 0:00:33]} 59. Kxf2 {[%clk 0:00:11]}  Kd4 {[%clk 0:00:33]} 60. Ke2 {[%clk 0:00:12]}  Kxc4 {[%clk 0:00:34]} 61. Kd2 {[%clk 0:00:13]}  Kb4 {[%clk 0:00:35]} 62. Kd3 {[%clk 0:00:13]}  Kxa4 {[%clk 0:00:36]} 63. Kc4 {[%clk 0:00:13]}  b5+ {[%clk 0:00:37]} 64. Kxc5 {[%clk 0:00:14]}  b4 {[%clk 0:00:37]} 65. Kc4 {[%clk 0:00:13]}  Ka3 {[%clk 0:00:38]} 66. Kb5 {[%clk 0:00:13]}  b3 {[%clk 0:00:38]} 67. Kxa5 {[%clk 0:00:14]}  b2 {[%clk 0:00:39]} 68. Kb5 {[%clk 0:00:15]}  b1=Q+ {[%clk 0:00:40]} 69. Kc5 {[%clk 0:00:16]}  Qb3 {[%clk 0:00:39]} 70. Kd4 {[%clk 0:00:17]}  Qc2 {[%clk 0:00:39]} 71. Ke5 {[%clk 0:00:18]}  Qd3 {[%clk 0:00:40]} 72. Ke6 {[%clk 0:00:18]}  Qd4 {[%clk 0:00:40]} 73. Kf7 {[%clk 0:00:19]}  Qe5 {[%clk 0:00:40]} 74. Kg8 {[%clk 0:00:20]}  Qc7 {[%clk 0:00:40]} 75. Kh8 {[%clk 0:00:21]}  Qe7 {[%clk 0:00:40]} 76. Kg8 {[%clk 0:00:22]}  Kb4 {[%clk 0:00:40]} 77. Kh8 {[%clk 0:00:22]}  Kc5 {[%clk 0:00:41]} 78. Kg8 {[%clk 0:00:23]}  Kd5 {[%clk 0:00:42]} 79. Kh8 {[%clk 0:00:24]}  Ke5 {[%clk 0:00:43]} 80. Kg8 {[%clk 0:00:25]}  Kf6 {[%clk 0:00:44]} 81. Kh8 {[%clk 0:00:26]}  Qg7# {[%clk 0:00:45]} 0-1


[Site "https://www.chess.com"]

[Event "Titled Tuesday Blitz March 28 Early 2023"]
[White "Shubenkova, Veronika"]
[Black "Buscar, Michael"]
[WhiteFideId "44124040"]
[BlackFideId "2603616"]
[WhiteElo "2027"]
[BlackElo "2010"]
[Result "0-1"]
[Round "09"]
[TimeControl "180+2"]
[Date "2023.03.28"]
[WhiteClock "0:00:09"]
[BlackClock "0:00:40"]

1. e4 {[%clk 0:03:00]}  c5 {[%clk 0:02:59]} 2. Nc3 {[%clk 0:03:00]}  Nc6 {[%clk 0:02:57]} 3. g3 {[%clk 0:03:01]}  g6 {[%clk 0:02:53]} 4. Bg2 {[%clk 0:03:01]}  Bg7 {[%clk 0:02:54]} 5. d3 {[%clk 0:03:01]}  Nf6 {[%clk 0:02:49]} 6. f4 {[%clk 0:03:01]}  O-O {[%clk 0:02:50]} 7. Nf3 {[%clk 0:03:01]}  d6 {[%clk 0:02:48]} 8. Be3 {[%clk 0:03:00]}  Ne8 {[%clk 0:02:48]} 9. Rb1 {[%clk 0:02:59]}  Nd4 {[%clk 0:02:48]} 10. Ne2 {[%clk 0:02:59]}  Nxf3+ {[%clk 0:02:43]} 11. Bxf3 {[%clk 0:02:59]}  Nc7 {[%clk 0:02:44]} 12. O-O {[%clk 0:02:58]}  Rb8 {[%clk 0:02:41]} 13. g4 {[%clk 0:02:56]}  b5 {[%clk 0:02:38]} 14. Ng3 {[%clk 0:02:56]}  Ne6 {[%clk 0:02:37]} 15. f5 {[%clk 0:02:56]}  Nd4 {[%clk 0:02:38]} 16. Bg2 {[%clk 0:02:56]}  b4 {[%clk 0:02:35]} 17. h4 {[%clk 0:02:55]}  Be5 {[%clk 0:02:31]} 18. Bf4 {[%clk 0:02:51]}  Bxf4 {[%clk 0:02:28]} 19. Rxf4 {[%clk 0:02:52]}  e5 {[%clk 0:02:29]} 20. Rf2 {[%clk 0:02:51]}  Qxh4 {[%clk 0:02:28]} 21. Nf1 {[%clk 0:02:42]}  h5 {[%clk 0:02:01]} 22. gxh5 {[%clk 0:02:17]}  gxf5 {[%clk 0:01:58]} 23. exf5 {[%clk 0:02:14]}  Bxf5 {[%clk 0:01:58]} 24. Ne3 {[%clk 0:02:10]}  Be6 {[%clk 0:01:57]} 25. c3 {[%clk 0:01:57]}  Nb5 {[%clk 0:01:47]} 26. Bf3 {[%clk 0:01:42]}  bxc3 {[%clk 0:01:42]} 27. Rh2 {[%clk 0:01:42]}  Qf4 {[%clk 0:01:42]} 28. Rg2+ {[%clk 0:01:40]}  Kh8 {[%clk 0:01:41]} 29. Qe2 {[%clk 0:01:19]}  Nd4 {[%clk 0:01:38]} 30. Qf2 {[%clk 0:01:05]}  Nxf3+ {[%clk 0:01:32]} 31. Kh1 {[%clk 0:01:02]}  Qh4+ {[%clk 0:01:28]} 32. Qxh4 {[%clk 0:01:02]}  Nxh4 {[%clk 0:01:29]} 33. Rh2 {[%clk 0:01:01]}  Bxa2 {[%clk 0:01:20]} 34. Rg1 {[%clk 0:00:59]}  Nf3 {[%clk 0:01:16]} 35. Rf2 {[%clk 0:00:39]}  Nxg1 {[%clk 0:01:15]} 36. Rf6 {[%clk 0:00:37]}  Be6 {[%clk 0:01:12]} 37. bxc3 {[%clk 0:00:33]}  Nh3 {[%clk 0:01:09]} 38. h6 {[%clk 0:00:31]}  Rg8 {[%clk 0:01:02]} 39. Kh2 {[%clk 0:00:30]}  Nf4 {[%clk 0:00:59]} 40. Nd1 {[%clk 0:00:21]}  Rg2+ {[%clk 0:00:47]} 41. Kh1 {[%clk 0:00:20]}  Bd5 {[%clk 0:00:46]} 42. c4 {[%clk 0:00:18]}  Ba8 {[%clk 0:00:45]} 43. Rxf7 {[%clk 0:00:15]}  Rg7+ {[%clk 0:00:43]} 44. Kh2 {[%clk 0:00:13]}  Rxf7 {[%clk 0:00:43]} 45. d4 {[%clk 0:00:12]}  Rb1 {[%clk 0:00:42]} 46. Nf2 {[%clk 0:00:11]}  Rb2 {[%clk 0:00:42]} 47. Kg3 {[%clk 0:00:11]}  Nh5+ {[%clk 0:00:42]} 48. Kh4 {[%clk 0:00:11]}  Rbxf2 {[%clk 0:00:42]} 49. dxe5 {[%clk 0:00:10]}  dxe5 {[%clk 0:00:40]} 50. h7 {[%clk 0:00:10]}  Rg7 {[%clk 0:00:39]} 51. Kh3 {[%clk 0:00:09]}  Nf4+ {[%clk 0:00:39]} 52. Kh4 {[%clk 0:00:09]}  Rh2# {[%clk 0:00:40]} 0-1


[Site "https://www.chess.com"]